Cogmind - Beta 12 @@@ ROGUE MODE // 2023.03.21 @ 22:39:41 Player: charson Result: Destroyed by D-53 Grenadier with Mini Grenade Launcher Performance ------------- Evolutions (0) 0 Regions Visited (2) 400 Robots Destroyed (5) 25 Value Destroyed (32) 32 Prototype IDs (2) 40 Alien Tech Used (0) 0 Bonus (0) 0 TOTAL SCORE: 497 Bonus ------- None Cogmind --------- Core Integrity 0/250 Matter 288/300 Energy 100/100 System Corruption 2% Temperature Cool (0) Movement Core (100) Ox1 Location -10/Mines Parts ------- > --- POWER (1) -------- (None) > --- PROPULSION (2) --- Carbon-fiber Leg > --- UTILITY (2) ------ Signal Interpreter Terrain Scan Processor > --- WEAPON (2) ------- Light Assault Rifle Improved Light Cannon > --- INVENTORY (5) ---- Hover Unit Hardened Light Armor Plating Grenade Launcher Peak State ------------ > --- POWER ------------ (None) > --- PROPULSION ------- Light Treads Carbon-fiber Leg > --- UTILITY ---------- Signal Interpreter Terrain Scan Processor > --- WEAPON ----------- Light Assault Rifle Improved Light Cannon > --- INVENTORY -------- Hover Unit Hardened Light Armor Plating Grenade Launcher [Rating: 10] Favorites ----------- Power None Propulsion Light Treads Treads Light Treads Leg Carbon-fiber Leg Utility Terrain Scan Processor Processor Terrain Scan Processor Weapon Light Assault Rifle Ballistic Gun Light Assault Rifle Ballistic Cannon Improved Light Cannon Launcher Grenade Launcher Build | -11 -10 -10 ------- Run | Jun Mat Min Slots Evolved . | . . . Power . | . . . Propulsion . | . . . Utility . | . . . Weapon . | . . . Parts Attached 10 | 4 2 4 Power . | . . . Engine . | . . . Core . | . . . Reactor . | . . . Propulsion 3 | 2 . 1 Treads 2 | 2 . . Leg 1 | . . 1 Wheel . | . . . Hover . | . . . Flight . | . . . Utility 2 | . 2 . Device . | . . . Storage . | . . . Processor 2 | . 2 . Hackware . | . . . Protection . | . . . Artifact . | . . . Weapon 5 | 2 . 3 Energy Gun . | . . . Energy Cannon . | . . . Ballistic Gun 3 | 2 . 1 Ballistic Cannon 1 | . . 1 Launcher 1 | . . 1 Special Weapon . | . . . Impact Weapon . | . . . Slashing Weapon . | . . . Piercing Weapon . | . . . Special Melee Weapon . | . . . Unidentified Prototypes . | . . . Parts Lost 3 | . . 3 Power . | . . . Propulsion 2 | . . 2 Utility . | . . . Weapon 1 | . . 1 Highest Loss Streak 1 | . . 1 To Critical Strikes . | . . . Average Slot Usage (%) 80 | . 68 83 Treads 25 | . 28 24 Leg 1 | . . 2 Processor 24 | . 11 28 Ballistic Gun 23 | . 28 22 Ballistic Cannon 4 | . . 5 Naked Turns . | . . . Heaviest Build 6 | 3 3 6 Greatest Support 20 | 20 3 3 Greatest Overweight (x) 1 | . . 1 Average Overweight (x) . | . . . Largest Inventory Capacity 5 | 5 5 5 Average Capacity 5 | 5 5 5 Most Carried 4 | . 3 4 Average Carried 3 | . 2 3 Final Capacity 5 | 5 5 5 Final Carried 3 | . 3 3 Class Distribution -------------------- 100% | Mutant Dominant Class ---------------- Mutant | -10/Materials Mutant | -10/Mines Resources | -11 -10 -10 ----------- Run | Jun Mat Min Matter Collected 496 | 185 . 311 Remotely . | . . . Salvage Created 170 | . . 170 Parts 9 | . . 9 Haulers Intercepted . | . . . Recyclers Shooed . | . . . Parts Field Recycled . | . . . Retrieved Matter . | . . . Parts Self-Destructed . | . . . Prevented . | . . . Kills | -11 -10 -10 ------- Run | Jun Mat Min Combat Hostiles Destroyed 12 | . . 12 Guns 4 | . . 4 Cannons 2 | . . 2 AOE 6 | . . 6 Classes Destroyed 5 | . . 5 Worker 1 | . . 1 Builder 1 | . . 1 Recycler 1 | . . 1 Swarmer 2 | . . 2 Assembled 10 | . . 10 Best Kill Streak 8 | . . 8 Combat Bots Only 8 | . . 8 Max Kills in Single Turn 3 | . . 3 Gunslinging . | . . . Exploded 3 | . . 3 Melee . | . . . Uniques/NPCs Destroyed . | . . . Combat | -11 -10 -10 -------- Run | Jun Mat Min Damage Taken 795 | . 88 707 Core 253 | . 24 229 Absorbed by Shields . | . . . Core Remaining (%) 100 | 100 . . Volleys Fired 37 | . . 37 Largest 2 | . . 2 Hottest 59 | . . 59 Shots Fired 65 | . . 65 Gun 36 | . . 36 Cannon 20 | . . 20 Launcher 9 | . . 9 Special . | . . . Kinetic 56 | . . 56 Thermal . | . . . Explosive 9 | . . 9 Electromagnetic . | . . . Robot Hit Streak 3 | . . 3 Robot Miss Streak 6 | . . 6 Penetration Max . | . . . Secondary Targets . | . . . Shots Hit Robots 21 | . . 21 Core Hits 26 | . . 26 Critical Kills . | . . . Critical Parts Destroyed . | . . . Critical Strikes . | . . . Melee Attacks . | . . . Impact . | . . . Slashing . | . . . Piercing . | . . . Sneak Attacks . | . . . Combat Hostiles . | . . . Follow-up Attacks . | . . . Damage Inflicted 693 | . 4 689 Guns 142 | . . 142 Cannons 121 | . . 121 Explosions 426 | . . 426 Melee . | . . . Ramming 4 | . 4 . Kinetic 263 | . . 263 Thermal . | . . . Explosive 426 | . . 426 Electromagnetic . | . . . Impact . | . . . Slashing . | . . . Piercing . | . . . Highest Corruption 2 | . 2 2 Average Corruption 2 | . 2 2 Corruption Purged . | . . . Corruption Blocked . | . . . Effects 6 | . 2 4 Message Errors 2 | . 2 . Heat Flow Errors 2 | . . 2 Misfires 1 | . . 1 Weapon Failures 1 | . . 1 Overload Shots . | . . . Overflow Damage 14 | . . 14 Projectiles 9 | . . 9 Explosions 5 | . . 5 Melee . | . . . Knockbacks 1 | . . 1 Impact . | . . . Kinetic 1 | . . 1 Secondary . | . . . Self-Inflicted Damage 2 | . 2 . Shots . | . . . Rammed 1 | . 1 . Targets Rammed 1 | . 1 . Kicked . | . . . Crushed . | . . . Highest Temperature 243 | . . 243 Average Temperature 37 | . . 37 Received Heat Transfer 68 | . 48 20 Siege Activations . | . . . Robots Corrupted . | . . . Combat Hostiles . | . . . Parts Fried . | . . . Impact Corruptions . | . . . Robots Melted . | . . . Combat Hostiles . | . . . Parts Melted . | . . . Heat Transferred . | . . . Parts Sabotaged . | . . . Parts Stolen . | . . . Parts Stripped . | . . . Power Chain Reactions . | . . . Missiles Intercepted . | . . . Alert | -11 -10 -10 ------- Run | Jun Mat Min Peak Influence 165 | . 50 165 Initial 25 | . . 25 Average 83 | . 16 103 Maximum Alert Level . | . . . Low Security (%) 100 | 100 100 100 Level 1 . | . . . Level 2 . | . . . Level 3 . | . . . Level 4 . | . . . Level 5 . | . . . High Security . | . . . Max Security . | . . . Squads Dispatched 3 | . 3 . Investigation 2 | . 2 . Extermination . | . . . Reinforcement 1 | . 1 . Assault . | . . . Garrison . | . . . Intercept . | . . . Searches Triggered . | . . . Construction Impeded . | . . . Haulers Reinforced . | . . . Active Scanning Responses . | . . . Cargo Convoy Interrupts . | . . . Stealth | -11 -10 -10 --------- Run | Jun Mat Min Distress Signals 1 | . 1 . Communications Jammed . | . . . Distress Signals . | . . . Times Spotted 28 | . 9 19 Peak Tracking Total 9 | . 8 9 Tactical Retreats 6 | . 2 4 Traps | -11 -10 -10 ------- Run | Jun Mat Min Traps Triggered 1 | . 1 . Indirectly . | . . . Trap Hack Attempts . | . . . Triggered . | . . . Disarmed . | . . . Reprogrammed . | . . . Reused . | . . . Traps Extracted . | . . . Installed . | . . . Triggered . | . . . Machines | -11 -10 -10 ---------- Run | Jun Mat Min Machines Disabled . | . . . Max in Single Turn . | . . . Machines Repaired . | . . . Machines Sabotaged . | . . . Overloaded Fab Kills . | . . . Hacking | -11 -10 -10 --------- Run | Jun Mat Min Machines Accessed 2 | . 2 . Terminals 1 | . 1 . Fabricators . | . . . Repair Stations . | . . . Recycling Units 1 | . 1 . Scanalyzers . | . . . Garrison Access . | . . . Total Hacks 6 | . 6 . Successful 1 | . 1 . Failed 5 | . 5 . Catastrophic . | . . . Database Lockouts . | . . . Manual 5 | . 5 . Terminals 3 | . 3 . Fabricators . | . . . Repair Stations . | . . . Recycling Units 3 | . 3 . Scanalyzers . | . . . Garrison Access . | . . . Terminal Hacks 1 | . 1 . Prototype ID Bank 1 | . 1 . Fabricator Hacks . | . . . Repair Station Hacks . | . . . Recycling Unit Hacks . | . . . Scanalyzer . | . . . Garrison Access Hacks . | . . . Unauthorized Hacks . | . . . Terminals . | . . . Fabricators . | . . . Repair Stations . | . . . Recycling Units . | . . . Scanalyzers . | . . . Garrison Access . | . . . Data Cores Recovered . | . . . Used . | . . . Hacking Detections 2 | . 2 . Full Trace Events 1 | . 1 . Feedback Events . | . . . Feedback Blocked . | . . . Robot Schematics Acquired . | . . . Robots Built . | . . . Authchips . | . . . Time . | . . . Total Robot Build Rating . | . . . Part Schematics Acquired . | . . . Parts Built . | . . . Authchips . | . . . Time . | . . . Total Part Build Rating . | . . . Parts Repaired . | . . . Time . | . . . Parts Recycled . | . . . Recycled Matter . | . . . Retrieved Matter . | . . . Retrieved Components . | . . . Parts Scanalyzed . | . . . Part Schematics Acquired . | . . . Parts Damaged . | . . . Bothacking | -11 -10 -10 ------------ Run | Jun Mat Min Used RIF Installer . | . . . Robots Hacked . | . . . Non-combat . | . . . Combat . | . . . Robot Hacks Applied . | . . . Relay Couplers Released . | . . . Fabnet Peak Effective % . | . . . Robots Rewired . | . . . Allies Hacked . | . . . Hacks Repelled . | . . . Allies | -11 -10 -10 -------- Run | Jun Mat Min Total Allies 2 | . . 2 Largest Group 2 | . . 2 Highest-Rated Group 42 | . . 42 Highest-Rated Ally 31 | . . 31 Total Orders . | . . . Ally Attacks 2 | . . 2 Total Damage 20 | . . 20 Kills . | . . . Allies Corrupted 1 | . . 1 Allies Melted . | . . . Intel | -11 -10 -10 ------- Run | Jun Mat Min Robot Analysis Total . | . . . Derelict Logs Recovered 1 | . . 1 Drone Launches . | . . . Drone Recoveries . | . . . Exploration | -11 -10 -10 ------------- Run | Jun Mat Min Turns Passed 607 | 21 118 468 Spaces Moved 712 | 23 222 467 Core 709 | 20 222 467 Treads 3 | 3 . . Legs . | . . . Wheels . | . . . Hover . | . . . Flight . | . . . Fastest Speed 50 | 50 50 50 Average Speed 57 | 64 50 60 Slowest Speed 160 | 160 50 100 Overloaded Moves . | . . . Propulsion Burnouts . | . . . Robots Hopped . | . . . Cave-ins Triggered . | . . . Exploration Rate (%) 39 | 3 48 67 Regions Visited 2 Branch Regions 1 Pre-discovered Areas . | . . . Known Exits Taken 1 | . 1 . Unknown Exits Taken 1 | 1 . . Scrap Searched 1 | . . 1 Spaces Dug 5 | . . 5 Terrain Destroyed 69 | . . 69 Melee . | . . . Projectile 8 | . . 8 AOE 61 | . . 61 Terrain Rammed . | . . . Walls Destroyed . | . . . Machines Disabled . | . . . Actions | -11 -10 -10 --------- Run | Jun Mat Min Total 845 | 26 227 592 Wait 83 | . . 83 Move 710 | 22 221 467 Hop . | . . . Pick Up 4 | . 3 1 Fast Attach 7 | 4 2 1 Attach 1 | . . 1 Detach . | . . . Swap 2 | . . 2 Drop . | . . . Fire 37 | . . 37 Melee . | . . . Ram 1 | . 1 . Kick . | . . . Crush . | . . . Escape Stasis . | . . . Rewire . | . . . Trap . | . . . Miscellaneous . | . . . Route ------- -11/Junkyard -10/Materials (discovered 2 exits: [*Mat] / *Min) -10/Mines (discovered 1 exit: [*Mat]) History --------- Turn | Location | Event 5 | -11/Junkyard | Discovered new exit (range 16) 22 | -11/Junkyard | Entered Materials 62 | -10/Materials | Discovered new exit (range 10) 129 | -10/Materials | Discovered new exit (range 16) 139 | -10/Materials | Identified exit to Mines 140 | -10/Materials | Entered Mines 142 | -10/Mines | Met a Derelict bent on vengeance 148 | -10/Mines | Discovered new exit (range 8) 247 | -10/Mines | Learned Materials terminal intel 281 | -10/Mines | Assembled infested the area 310 | -10/Mines | Build established: Mutant 441 | -10/Mines | Core integrity fell below 50% 469 | -10/Mines | Destroyed 8 combat bots 489 | -10/Mines | Core integrity fell below 20% 608 | -10/Mines | Destroyed by D-53 Grenadier with Mini Grenade Launcher Last Messages --------------- 00531_ Acquired 14 matter. 00534_ Acquired 29 matter. 00540_ R-06 Scavenger destroyed. 00545_ Acquired 50 matter. 00546_ Acquired 2 matter. 00561_ Acquired 13 matter. 00562_ Acquired 7 matter. 00566_ Acquired 5 matter. 00577_ K-01 Serf collects debris. 00577_ Acquired 9 matter. 00578_ K-01 Serf collects debris. 00580_ U-05 Engineer lays Concrete. 00581_ U-05 Engineer builds a Wall. 00581_ Acquired 7 matter. 00585_ U-05 Engineer builds a Wall. 00587_ K-01 Serf collects debris. 00590_ Acquired 17 matter. 00596_ Acquired 12 matter. 00598_ Acquired 22 matter. 00608_ Lgt. Treads destroyed. Map ----- +----------------------------------------------------+ | ?????????????????????????????????????????????????? | | ?????????????????????????????????????????????????? | | ?????????????????????????????????????????????????? | | ???????????????????????????????????????#####?????? | | ???????????????????????????????????????# ??????? | | ??????????????????????????????????????## ??????? | | ??????????????????????????????????????# ! ??????? | | ??????????????????????????????????????# = ??????? | | ???????????????????????????????????????#% ######## | | ???????????????????????????????????????# | | ???????????????????????????????????????# | | ???????????????????????????????????????## | | ????????????????????????????????????????## | | ?????????????????????????????????????????### | | ???????????????????????????????????????????### | | ?????????????????????????????????????????????## | | ???????????????????????#######????????????????## | | ???????????????????????# ##???????#####????## | | ???????????????????????# ##??????? #?????# | | ???????????????????????# ##???????# ####??# | | ????????????????????????# #####??## #### | | ?????????????????????##### #### * | | ????????????????????## # ## = | | ????????????????????# # ###### | | ?????????????????????# * ! #???? | | ?????????????????????# d@ #???? | | ????????????????????# ## = * #???? | | ????????????????????## ## ##% ###???? | | ??????????????????#### # ### ##### ###?????? | | ??????????????????# #####?## ##???####???????? | | ??????????????????# d #??????# # ??????????????? | | ??????????????????# #####??????# # ##??#####????? | | ??????????????????# #??????????# % ## ##???? | | ??????????????????# #?????????## ## =! #???? | | ?????#% ###### #????????###%## %%* % ##??? | | ??????????# #????????# # # # ##?# | | ???????????# #????????# # #????# ### | | ???????????# ####???????##### #????# | | ???????????# #???????????? ###### # | | ???????????## #?????????????#### ### # #### | | ????????????###??????????????# ##?? | | ?????????????????????????????# # #?? | | ??????????????????????????????# # # ###? | | ??????????????????????????????## # ## #? | | ???????????????????????????????## ##? | | ??????????????????????????????## ##?? | | ??????????????????????????????# ######??? | | ??????????????????????????????# ## ##???????? | | ??????????????????????????????## #######????????? | | ???????????????????????????????####?????########## | +----------------------------------------------------+ Best States ------------- Heat Dissipation 25 Energy Generation 5 Energy Capacity 100 Matter Stores 300 Matter Capacity 300 Sight Range 16 Terrain Scan Density 85 Evasion (%) 50 Recoil Reduction 1 Item Schematics ----------------- None Robot Schematics ------------------ None Fabricated ------------ Nothing Alien Tech Used ----------------- None Achievements -------------- None Challenges ------------ None Game ------ Seed CoordinationModifiedExpander Manual? 0 Play Time 00:11:44 Cumulative 11.0 hours Start 2023.03.21 @ 22:25:06 End 2023.03.21 @ 22:39:41 Sessions 1 Manual Loads 0 Difficulty Rogue Special Mode None Game No. 13 Rogue 13 Adventurer 0 Explorer 0 Win Type - Total 0 Types 0/0/0/0/0/0/0/0/0 Lore% 33 Gallery% 22 Achievement% 35 Wizard Run 0 Options --------- ASCII 1 Keyboard 1 Movement Numpad Keybinds 0 Fullscreen 1 Font 12/Smallcaps Map View 83x54 Tactical HUD 1 Map Filters NONE Filters NONE Steam 1 RUN: 7fa9115a-18d7-42c5-b5c9-b22438d23a7e